Cogmind - Beta 16 @@@ ROGUE MODE // 2026.01.07 @ 23:05:32 Player: mephiles96 Result: Destroyed by Y-64 Sentinel with Wave Gun Performance ------------- Evolutions (6) 3000 Regions Visited (10) 2000 Robots Destroyed (60) 300 Value Destroyed (2226) 2226 Prototype IDs (4) 80 Alien Tech Used (0) 0 Bonus (643) 643 TOTAL SCORE: 8249 Bonus ------- Follower Combat Kills 143 Entered DSFs 500 Cogmind --------- Core Integrity 0/1150 Matter 127/300 Energy 96/100 System Corruption 15% Temperature Cool (9) Movement Core (50) Location -4/Factory Parts ------- > --- POWER (2) -------- (None) > --- PROPULSION (6) --- (None) > --- UTILITY (9) ------ Advanced Signal Interpreter System Shield > --- WEAPON (2) ------- (None) > --- INVENTORY (5) ---- Experimental Sensor Array Molecular Scythe Peak State ------------ > --- POWER ------------ Improved Fusion Compressor Light Quantum Reactor > --- PROPULSION ------- Carbon-fiber Leg Carbon-fiber Leg Flexi-carbon Leg Myomer Leg Myomer Leg Centrium Wheel > --- UTILITY ---------- Compact Matter Pod Improved Sensor Array Advanced Signal Interpreter ECM Suite Improved Point Defense System Hacking Suite Hacking Suite System Shield > --- WEAPON ----------- Railgun Molecular Scythe > --- INVENTORY -------- Experimental Sensor Array Advanced Recoil Stabilizer Magnetic Acceleration Cannon Hypervelocity Mass Driver Heavy Missile Launcher [Rating: 94] Favorites ----------- Power Ion Engine Engine Ion Engine Power Core Improved Fusion Compressor Reactor Light Quantum Reactor Propulsion Carbon-fiber Leg Treads Advanced Treads Leg Carbon-fiber Leg Wheel Wheel Hover Unit Backup Propulsion I Utility Seismic Detector Device Seismic Detector Storage Large Storage Unit Processor Advanced Signal Interpreter Hackware Hacking Suite Protection Hardened Medium Armor Plating Weapon Heavy EM Shotgun Energy Gun Heavy EM Shotgun Ballistic Gun Assault Rifle Ballistic Cannon Magnetic Acceleration Cannon Launcher Heavy Missile Launcher Slashing Weapon Falx Special Melee Weapon Datajack Build | -11 -10 -10 -10 -9 -8 -7 -6 -6 -5 -4 ------- Run | Yrd Mat Min Exi Min Mat Fac Fac DSF Fac Fac Slots Evolved 12 | . . . . . 4 2 2 . 2 2 Power 1 | . . . . . . 1 . . . . Propulsion 4 | . . . . . 1 1 2 . . . Utility 7 | . . . . . 3 . . . 2 2 Weapon . | . . . . . . . . . . . Parts Attached 92 | 10 1 2 2 . 16 11 4 3 24 19 Power 13 | 1 . . . . 4 1 . . 3 4 Engine 7 | 1 . . . . 3 . . . 3 . Core 5 | . . . . . 1 1 . . . 3 Reactor 1 | . . . . . . . . . . 1 Propulsion 31 | 3 . . . . 5 6 2 3 8 4 Treads 6 | 2 . . . . 3 . . . 1 . Leg 9 | 1 . . . . . 1 . . 4 3 Wheel 5 | . . . . . 1 1 . . 2 1 Hover 11 | . . . . . 1 4 2 3 1 . Flight . | . . . . . . . . . . . Utility 30 | 4 1 1 . . 5 1 2 . 10 6 Device 18 | 3 . . . . 4 1 1 . 6 3 Storage 7 | 1 1 1 . . 1 . . . 2 1 Processor 1 | . . . . . . . 1 . . . Hackware 3 | . . . . . . . . . 1 2 Protection 1 | . . . . . . . . . 1 . Artifact . | . . . . . . . . . . . Weapon 18 | 2 . 1 2 . 2 3 . . 3 5 Energy Gun 4 | . . . . . 2 1 . . 1 . Energy Cannon . | . . . . . . . . . . . Ballistic Gun 7 | 2 . . 2 . . 2 . . . 1 Ballistic Cannon 2 | . . . . . . . . . . 2 Launcher 2 | . . 1 . . . . . . . 1 Special Weapon . | . . . . . . . . . . . Impact Weapon . | . . . . . . . . . . . Slashing Weapon 2 | . . . . . . . . . 1 1 Piercing Weapon . | . . . . . . . . . . . Special Melee Weapon 1 | . . . . . . . . . 1 . Unidentified Prototypes 4 | . . . . . 2 . 1 . . 1 Corrupted Parts 4 | . . . . . 2 2 . . . . System Corruption 15 | . . . . . 6 9 . . . . Parts Lost 55 | . . . . . 1 19 . 5 8 22 Power 7 | . . . . . . 3 . . 1 3 Propulsion 21 | . . . . . . 6 . 4 3 8 Utility 16 | . . . . . 1 4 . 1 2 8 Weapon 11 | . . . . . . 6 . . 2 3 Highest Loss Streak 16 | . . . . . 1 12 . 5 4 16 To Critical Strikes . | . . . . . . . . . . . Average Backups 9 | 5 8 9 9 9 14 13 3 4 4 4 Power . | . 1 . . . . . . . . . Propulsion 3 | 3 3 3 3 3 7 7 1 1 . . Utility 2 | . 2 4 4 4 2 2 1 1 1 1 Weapon 2 | . 1 1 1 2 4 3 . 1 1 2 Tool/Special . | . . . . . . . . . . . Unused Backups 18 | 1 1 3 2 1 4 3 . 1 1 1 Power 1 | . . 1 . . . . . . . . Propulsion 4 | 1 1 . . . 1 1 . . . . Utility 9 | . . 1 1 . 2 2 . 1 1 1 Weapon 4 | . . 1 1 1 1 . . . . . Tool/Special . | . . . . . . . . . . . Average Slot Usage (%) 90 | . 100 100 100 100 96 82 61 50 75 92 Engine 9 | . 14 14 14 14 7 9 . . 8 5 Core 1 | . . . . . 1 2 . . . 3 Treads 16 | . 28 28 28 28 26 16 . . 1 . Leg 6 | . . . . . . 3 . . 12 23 Wheel 1 | . . . . . . 1 . . 3 4 Hover 2 | . . . . . . 2 39 30 3 . Device 20 | . 14 14 14 14 33 24 4 4 20 13 Storage 8 | . 14 14 14 14 9 6 . . 3 5 Processor 1 | . . . . . . . 4 6 5 5 Hackware 1 | . . . . . . . . . . 13 Energy Gun 4 | . . . . . 14 12 . . 1 . Ballistic Gun 10 | . 28 27 28 28 3 1 13 9 . 4 Slashing Weapon 1 | . . . . . . . . . 4 4 Peak Build Rating 94 | 9 8 9 15 15 38 44 40 40 57 94 Average Rating 34 | 6 7 8 11 14 33 36 37 30 43 79 On Entrance 19 | . 8 8 9 15 15 38 23 40 7 48 Avg Prop Armor Cover (%) 8 | 11 . . . . 16 12 17 18 4 2 Naked Turns . | . . . . . . . . . . . Heaviest Build 79 | 14 19 19 24 24 41 48 7 7 43 79 Greatest Support 100 | 40 40 40 40 40 66 66 16 43 60 100 Greatest Overweight (x) 17 | 1 . . . . 3 8 . . 2 17 Average Overweight (x) . | . . . . . . . . . . . Largest Inventory Capacity 20 | 8 10 20 10 10 15 15 5 5 5 20 Average Capacity 10 | 7 8 10 10 10 14 14 5 5 5 8 Most Carried 15 | 8 10 10 10 10 15 15 5 5 5 5 Average Carried 9 | 5 8 9 9 9 14 13 4 4 4 4 Final Capacity 15 | 8 10 10 10 10 15 5 5 5 5 5 Final Carried 15 | 8 10 10 10 10 15 5 5 5 5 2 Class Distribution -------------------- 58% | Mutant 17% | Scavenger-Mutant 13% | Hacker-Mutant 10% | Commander-Mutant Dominant Class ---------------- Mutant | -10/Materials Mutant | -10/Mines Commander-Mutant | -10/Exiles Commander-Mutant | -9/Mines Mutant | -8/Materials Mutant | -7/Factory Mutant | -6/Factory Mutant | -6/DSF Scavenger-Mutant | -5/Factory Hacker-Mutant | -4/Factory Resources | -11 -10 -10 -10 -9 -8 -7 -6 -6 -5 -4 ----------- Run | Yrd Mat Min Exi Min Mat Fac Fac DSF Fac Fac Matter Collected 1860 | 409 . 35 107 32 313 88 . 6 316 554 Remotely . | . . . . . . . . . . . Salvage Created 3183 | 165 . 11 113 16 1264 633 . . 330 651 Parts 147 | 16 . 1 5 1 58 28 . . 9 29 Haulers Intercepted 3 | . . . . . 3 . . . . . Recyclers Shooed 2 | 1 . . . . . . . . 1 . Parts Field Recycled . | . . . . . . . . . . . Retrieved Matter . | . . . . . . . . . . . Parts Self-Destructed . | . . . . . . . . . . . Prevented . | . . . . . . . . . . . Parts Restored . | . . . . . . . . . . . Kills | -11 -10 -10 -10 -9 -8 -7 -6 -6 -5 -4 ------- Run | Yrd Mat Min Exi Min Mat Fac Fac DSF Fac Fac Combat Hostiles Destroyed 38 | . . 2 . 1 12 8 . . 5 10 Melee 9 | . . . . . . . . . 3 6 Guns 18 | . . . . 1 9 5 . . 2 1 AOE 8 | . . 2 . . 1 2 . . . 3 Classes Destroyed 10 | 3 . 1 . . 5 1 . . . . Worker 5 | 2 . . . . 1 . . . 1 1 Builder 1 | . . . . . 1 . . . . . Tunneler 3 | 3 . . . . . . . . . . Hauler 3 | . . . . . 3 . . . . . Recycler 7 | 1 . . . . 3 2 . . . 1 Watcher 2 | . . . . . 2 . . . . . Swarmer 3 | . . 2 . 1 . . . . . . Grunt 24 | . . . . . 12 2 . . 4 6 Sentry 5 | . . . . . 1 3 . . 1 . Programmer 7 | . . . . . . 3 . . . 4 Best Kill Streak 4 | 3 . 2 . 1 4 3 . . 2 4 Combat Bots Only 3 | . . 2 . 1 3 3 . . 2 3 Max Kills in Single Turn 3 | 2 . 1 . 1 3 1 . . 1 2 Gunslinging . | . . . . . . . . . . . Exploded 2 | . . 1 . . 1 1 . . . 2 Melee 1 | . . . . . . . . . 1 1 Uniques/NPCs Destroyed . | . . . . . . . . . . . Combat | -11 -10 -10 -10 -9 -8 -7 -6 -6 -5 -4 -------- Run | Yrd Mat Min Exi Min Mat Fac Fac DSF Fac Fac Hostile Shots Fired 732 | . . 7 . 14 48 289 . 29 64 281 Missed 260 | . . 2 . 6 13 116 . 11 13 99 Hits 472 | . . 5 . 8 35 173 . 18 51 182 Melee 10 | . . . . . . . . 10 . . Projectile 462 | . . 5 . 8 35 173 . 8 51 182 AOE 3 | . . . . . . . . 3 . . Critical Strikes 23 | . . . . . 2 3 . 6 2 10 Part Disruptions 1 | . . . . . . . . . . 1 Damage Taken 7645 | . . 71 . 91 564 1773 . 597 1027 3522 Core 2132 | . . . . 8 77 343 . 225 308 1171 Absorbed by Shields 59 | . . . . . . . . 41 18 . Core Remaining (%) 79 | 100 . . . 96 86 51 . 73 69 . Volleys Fired 151 | 17 . 3 6 4 42 39 . . 14 26 Largest 2 | 2 . 1 2 2 2 2 . . 1 2 Hottest 100 | 40 . 30 48 56 100 100 . . 81 91 Shots Fired 262 | 34 . 3 12 8 85 67 . . 15 38 Gun 240 | 34 . . 12 8 84 65 . . 15 22 Cannon 8 | . . . . . . . . . . 8 Launcher 14 | . . 3 . . 1 2 . . . 8 Special . | . . . . . . . . . . . Kinetic 121 | 34 . . 12 8 16 21 . . . 30 Thermal 15 | . . . . . . . . . 15 . Explosive 14 | . . 3 . . 1 2 . . . 8 Electromagnetic 112 | . . . . . 68 44 . . . . Robot Hit Streak 10 | 6 . 1 9 1 8 9 . . 10 7 Robot Miss Streak 6 | 5 . 1 1 4 5 6 . . 2 4 Penetration Max 1 | . . . . 1 1 . . . . 1 Secondary Targets 2 | . . . . . 1 1 . . . . Max Gunslinging Chain 1 | . . . . . 1 1 . . . . Shots Hit Robots 201 | 16 . 1 10 2 60 52 . . 26 34 Core Hits 138 | 8 . 3 5 1 46 31 . . 10 34 Critical Kills . | . . . . . . . . . . . Critical Parts Destroyed 1 | . . . . . . . . . . 1 Critical Strikes 7 | . . . . . . . . . 5 2 Burn 1 | . . . . . . . . . 1 . Destroy 1 | . . . . . . . . . . 1 Sever 5 | . . . . . . . . . 4 1 Melee Attacks 44 | . . . . . . . . . 17 27 Impact . | . . . . . . . . . . . Slashing 43 | . . . . . . . . . 16 27 Piercing . | . . . . . . . . . . . Sneak Attacks 4 | . . . . . . . . . 3 1 Combat Hostiles . | . . . . . . . . . . . Follow-up Attacks . | . . . . . . . . . . . Damage Inflicted 5907 | 181 . 160 95 56 1490 1036 . . 949 1940 Guns 3141 | 181 . . 95 56 1291 850 . . 317 351 Cannons 58 | . . . . . . . . . . 58 Explosions 1257 | . . 160 . . 197 186 . . . 714 Melee 1449 | . . . . . . . . . 632 817 Ramming 2 | . . . . . 2 . . . . . Kinetic 1275 | 181 . . 95 56 245 289 . . . 409 Thermal 690 | . . . . . 153 115 . . 317 105 Explosive 884 | . . 160 . . 44 71 . . . 609 Electromagnetic 1607 | . . . . . 1046 561 . . . . Impact . | . . . . . . . . . . . Slashing 1449 | . . . . . . . . . 632 817 Piercing . | . . . . . . . . . . . Highest Corruption 15 | . . . . . 6 12 . . 3 15 Average Corruption 5 | . . . . . 5 8 . . 3 7 Corruption Purged . | . . . . . . . . . . . Corruption Blocked . | . . . . . . . . . . . Effects 63 | . . . . . 15 16 . . 24 8 Message Errors 14 | . . . . . 3 3 . . 5 3 Matter Fused 17 | . . . . . 3 4 . . 8 2 Heat Flow Errors 6 | . . . . . 1 4 . . . 1 Energy Discharges 10 | . . . . . 3 1 . . 5 1 Parts Fused 2 | . . . . . 1 . . . 1 . Data Loss (minor) 7 | . . . . . 1 3 . . 3 . Data Loss (major) 1 | . . . . . . . . . 1 . Misfires 5 | . . . . . 2 1 . . 1 1 Weapon Failures 1 | . . . . . 1 . . . . . Overload Shots . | . . . . . . . . . . . Overflow Damage 115 | . . . . . . 8 . . 93 14 Projectiles . | . . . . . . . . . . . Explosions 8 | . . . . . . 8 . . . . Melee 107 | . . . . . . . . . 93 14 Knockbacks . | . . . . . . . . . . . Impact . | . . . . . . . . . . . Kinetic . | . . . . . . . . . . . Secondary . | . . . . . . . . . . . Self-Inflicted Damage 113 | . . 29 . . . 84 . . . . Shots 2 | . . 1 . . . 1 . . . . Rammed 1 | . . . . . 1 . . . . . Targets Rammed 1 | . . . . . 1 . . . . . Kicked . | . . . . . . . . . . . Crushed . | . . . . . . . . . . . Highest Temperature 197 | . . . . . 174 98 . . 197 171 Average Temperature 68 | . . . . . 63 38 . . 107 46 Received Heat Transfer 1419 | . . . . 9 315 387 . . 471 237 Siege Activations . | . . . . . . . . . . . Martial Activations . | . . . . . . . . . . . Shielding Activations . | . . . . . . . . . . . Robots Disrupted . | . . . . . . . . . . . Combat Hostiles . | . . . . . . . . . . . Robots Corrupted 3 | . . . . . 2 1 . . . . Combat Hostiles 3 | . . . . . 2 1 . . . . Parts Fried 6 | . . . . . 1 5 . . . . Impact Corruptions . | . . . . . . . . . . . Robots Melted . | . . . . . . . . . . . Combat Hostiles . | . . . . . . . . . . . Parts Melted . | . . . . . . . . . . . Heat Transferred 955 | . . . . . 150 100 . . 555 150 Parts Sabotaged . | . . . . . . . . . . . Parts Stolen . | . . . . . . . . . . . Parts Stripped . | . . . . . . . . . . . Power Chain Reactions 5 | . . . . . 3 2 . . . . Alert | -11 -10 -10 -10 -9 -8 -7 -6 -6 -5 -4 ------- Run | Yrd Mat Min Exi Min Mat Fac Fac DSF Fac Fac Maximum Alert Level 1 | . . . . . . . . . . 1 Low Security (%) 99 | 100 100 100 . 100 100 100 100 100 100 96 Level 1 . | . . . . . . . . . . 3 Level 2 . | . . . . . . . . . . . Level 3 . | . . . . . . . . . . . Level 4 . | . . . . . . . . . . . Level 5 . | . . . . . . . . . . . High Security . | . . . . . . . . . . . Max Security . | . . . . . . . . . . . Peak Influence 296 | 5 5 114 . 165 156 110 18 3 50 296 Initial 65 | . . . . . 60 65 18 3 . . Average 31 | 1 . 18 . 90 59 37 6 1 4 47 Influence Increases 1975 | 30 5 114 12 215 555 358 5 . 150 531 Destroy 0b10 Robot/C 940 | . . 60 . 120 300 160 . . 100 200 Destroy 0b10 Robot/NC 115 | 30 . . 10 . 50 10 . . 5 10 Destroy Leader 220 | . . 10 . 20 70 70 . . 20 30 Allied During Kill 83 | . . 11 2 45 25 . . . . . Successful Hack 65 | . 5 . . . 9 36 5 . 10 . Disable Machine 165 | . . . . . 75 30 . . 15 45 Destroy Structure 267 | . . 18 . . 26 37 . . . 186 Partial Spotted 15 | . . . . . . 15 . . . . Lose Combat Pursuer 105 | . . 15 . 30 . . . . . 60 Influence Decreases 1790 | 30 5 114 12 60 566 463 39 5 150 346 Entered New Map 197 | . . . . . 95 79 21 2 . . Time Decay 1155 | 30 5 114 12 40 421 279 18 . 110 126 Lost Part 378 | . . . . . 10 105 . 3 40 220 Lost Ally 60 | . . . . 20 40 . . . . . Squads Dispatched 15 | . . . . . 2 4 . 1 4 4 Investigation 2 | . . . . . 1 . . . 1 . Extermination 5 | . . . . . . 2 . . 2 1 Reinforcement 8 | . . . . . 1 2 . 1 1 3 Assault . | . . . . . . . . . . . Garrison . | . . . . . . . . . . . Intercept . | . . . . . . . . . . . Searches Triggered . | . . . . . . . . . . . Construction Impeded 2 | . . . . . . . . . . 2 Haulers Reinforced 1 | . . . . . . . . . 1 . Active Scanning Responses . | . . . . . . . . . . . Cargo Convoy Interrupts . | . . . . . . . . . . . Stealth | -11 -10 -10 -10 -9 -8 -7 -6 -6 -5 -4 --------- Run | Yrd Mat Min Exi Min Mat Fac Fac DSF Fac Fac Distress Signals 8 | . . . . . 4 . . . 2 2 Communications Jammed . | . . . . . . . . . . . Distress Signals . | . . . . . . . . . . . Times Spotted 97 | . 2 3 . 8 30 15 . 4 13 22 Peak Tracking Total 9 | . 2 3 . 4 6 5 . 4 5 9 Tactical Retreats 4 | . . 1 . 1 . . . . 1 1 ECM-based Alert Blocks 4 | . . . . . . . . . 4 . Traps | -11 -10 -10 -10 -9 -8 -7 -6 -6 -5 -4 ------- Run | Yrd Mat Min Exi Min Mat Fac Fac DSF Fac Fac Traps Triggered 3 | . . . . . 1 1 . 1 . . Indirectly . | . . . . . . . . . . . Trap Hack Attempts . | . . . . . . . . . . . Triggered . | . . . . . . . . . . . Disarmed . | . . . . . . . . . . . Reprogrammed . | . . . . . . . . . . . Reused . | . . . . . . . . . . . Traps Extracted . | . . . . . . . . . . . Installed . | . . . . . . . . . . . Triggered . | . . . . . . . . . . . Machines | -11 -10 -10 -10 -9 -8 -7 -6 -6 -5 -4 ---------- Run | Yrd Mat Min Exi Min Mat Fac Fac DSF Fac Fac Machines Disabled 11 | . . . . . 5 2 . . 1 3 Max in Single Turn 2 | . . . . . 1 2 . . 1 2 Garrison Access 3 | . . . . . 1 . . . 1 1 Machines Repaired . | . . . . . . . . . . . Machines Dismantled . | . . . . . . . . . . . Machines Sabotaged . | . . . . . . . . . . . Overloaded Fab Kills . | . . . . . . . . . . . Hacking | -11 -10 -10 -10 -9 -8 -7 -6 -6 -5 -4 --------- Run | Yrd Mat Min Exi Min Mat Fac Fac DSF Fac Fac Machines Accessed 18 | . 1 . . . 4 3 1 . 6 3 Terminals 8 | . 1 . . . 2 1 1 . 2 1 Fabricators 2 | . . . . . . 1 . . 1 . Repair Stations 2 | . . . . . . . . . 1 1 Recycling Units . | . . . . . . . . . . . Scanalyzers 3 | . . . . . 1 1 . . 1 . Garrison Access 3 | . . . . . 1 . . . 1 1 Total Hacks 30 | . 2 . . . 8 5 1 . 10 4 Successful 13 | . 1 . . . 3 3 1 . 4 1 Failed 17 | . 1 . . . 5 2 . . 6 3 Catastrophic 9 | . 1 . . . 1 2 . . 2 3 Database Lockouts . | . . . . . . . . . . . Manual 11 | . 3 . . . 3 1 . . 3 1 Terminals 11 | . 2 . . . 3 1 1 . 3 1 Fabricators 3 | . . . . . . 1 . . 2 . Repair Stations 3 | . . . . . . . . . 2 1 Recycling Units . | . . . . . . . . . . . Scanalyzers 7 | . . . . . 3 3 . . 1 . Garrison Access 6 | . . . . . 2 . . . 2 2 Terminal Hacks 2 | . . . . . 1 . 1 . . . Open DSF 1 | . . . . . . . 1 . . . Level Access Points 1 | . . . . . 1 . . . . . Fabricator Hacks 2 | . . . . . . . . . 2 . Load Schematic 1 | . . . . . . . . . 1 . Build 1 | . . . . . . . . . 1 . Repair Station Hacks 1 | . . . . . . . . . 1 . Refit 1 | . . . . . . . . . 1 . Recycling Unit Hacks . | . . . . . . . . . . . Scanalyzer 4 | . . . . . 1 3 . . . . Insert Component 2 | . . . . . 1 1 . . . . Analyze 1 | . . . . . . 1 . . . . Retrieve Study 1 | . . . . . . 1 . . . . Garrison Access Hacks 3 | . . . . . 1 . . . 1 1 Seal Access 3 | . . . . . 1 . . . 1 1 Unauthorized Hacks 1 | . 1 . . . . . . . . . Terminals 1 | . 1 . . . . . . . . . Botnet 1 | . 1 . . . . . . . . . Fabricators . | . . . . . . . . . . . Repair Stations . | . . . . . . . . . . . Recycling Units . | . . . . . . . . . . . Scanalyzers . | . . . . . . . . . . . Garrison Access . | . . . . . . . . . . . Data Cores Recovered . | . . . . . . . . . . . Used . | . . . . . . . . . . . Hacking Detections 14 | . 1 . . . 2 3 1 . 5 2 Full Trace Events 2 | . . . . . 1 . . . 1 . Feedback Events . | . . . . . . . . . . . Feedback Blocked . | . . . . . . . . . . . Robot Schematics Acquired . | . . . . . . . . . . . Robots Built . | . . . . . . . . . . . Authchips . | . . . . . . . . . . . Time . | . . . . . . . . . . . Total Robot Build Rating . | . . . . . . . . . . . Part Schematics Acquired 1 | . . . . . . 1 . . . . Parts Built 1 | . . . . . . . . . 1 . Authchips . | . . . . . . . . . . . Time 116 | . . . . . . . . . 116 . Total Part Build Rating 3 | . . . . . . . . . 3 . Part Studies Acquired 1 | . . . . . . 1 . . . . Parts Repaired . | . . . . . . . . . . . Time . | . . . . . . . . . . . Parts Recycled . | . . . . . . . . . . . Recycled Matter . | . . . . . . . . . . . Retrieved Matter . | . . . . . . . . . . . Retrieved Components . | . . . . . . . . . . . Parts Scanalyzed 1 | . . . . . 1 . . . . . Part Schematics Acquired 1 | . . . . . . 1 . . . . Parts Damaged . | . . . . . . . . . . . Bothacking | -11 -10 -10 -10 -9 -8 -7 -6 -6 -5 -4 ------------ Run | Yrd Mat Min Exi Min Mat Fac Fac DSF Fac Fac Used RIF Installer . | . . . . . . . . . . . Robots Hacked 1 | . . . . . . . . . 1 . Non-combat 1 | . . . . . . . . . 1 . Combat . | . . . . . . . . . . . Robot Hacks Applied 1 | . . . . . . . . . 1 . no_distress 1 | . . . . . . . . . 1 . Relay Couplers Released . | . . . . . . . . . . . Fabnet Peak Effective % . | . . . . . . . . . . . Robots Rewired 3 | . . . 3 . . . . . . . Allies Hacked . | . . . . . . . . . . . Hacks Repelled . | . . . . . . . . . . . Allies | -11 -10 -10 -10 -9 -8 -7 -6 -6 -5 -4 -------- Run | Yrd Mat Min Exi Min Mat Fac Fac DSF Fac Fac Total Allies 7 | . . 3 3 1 . . . . . . Largest Group 6 | . . 3 6 6 5 . . . . . Highest-Rated Group 87 | . . 40 64 87 79 . . . . . Highest-Rated Ally 31 | . . 16 16 31 31 . . . . . Total Orders . | . . . . . . . . . . . Ally Attacks 55 | . . 5 . 12 38 . . . . . Total Damage 538 | . . 34 . 134 370 . . . . . Kills 9 | . . 1 . 5 3 . . . . . Allies Corrupted . | . . . . . . . . . . . Allies Melted . | . . . . . . . . . . . Intel | -11 -10 -10 -10 -9 -8 -7 -6 -6 -5 -4 ------- Run | Yrd Mat Min Exi Min Mat Fac Fac DSF Fac Fac Active Infowar (turns) 5582 | 131 186 906 649 94 1164 724 . . 905 823 Sensors 1728 | . . . . . . . . . 905 823 Terrain 1921 | 34 . . . . 1163 724 . . . . Seismic 2734 | 97 186 906 649 94 802 . . . . . ECM 1247 | . . . . . . . . . 538 709 Robot Analysis Total . | . . . . . . . . . . . Derelict Logs Recovered 3 | . . 3 . . . . . . . . Drone Launches . | . . . . . . . . . . . Drone Recoveries . | . . . . . . . . . . . Exploration | -11 -10 -10 -10 -9 -8 -7 -6 -6 -5 -4 ------------- Run | Yrd Mat Min Exi Min Mat Fac Fac DSF Fac Fac Turns Passed 6208 | 199 186 906 649 94 1164 870 81 54 1147 858 Spaces Moved 3553 | 83 114 553 348 45 567 513 127 80 636 487 Core 123 | 4 . . . . . 9 . 19 86 5 Treads 2155 | 71 114 553 348 45 538 308 . . 178 . Legs 834 | 8 . . . . . . . . 346 480 Wheels 146 | . . . . . 29 89 . . 26 2 Hover 295 | . . . . . . 107 127 61 . . Flight . | . . . . . . . . . . . Fastest Speed 38 | 50 160 160 160 160 110 38 46 40 50 50 Average Speed 136 | 154 160 160 160 160 148 140 46 48 121 121 Slowest Speed 900 | 190 160 160 160 160 225 450 46 50 190 900 Overloaded Moves . | . . . . . . . . . . . Propulsion Burnouts . | . . . . . . . . . . . Robots Hopped . | . . . . . . . . . . . Potential Cave-ins . | . . . . . . . . . . . Cave-ins Triggered . | . . . . . . . . . . . Exploration Rate (%) 35 | 6 22 100 71 12 41 19 3 84 13 14 Regions Visited 10 Branch Regions 3 Pre-discovered Areas 1 | . . 1 . . . . . . . . Known Exits Taken 3 | . . . . . 1 . 1 . 1 . Unknown Exits Taken 6 | 1 1 1 1 1 . 1 . . . . Scrap Searched 1 | . . 1 . . . . . . . . Spaces Dug 57 | . . . . . 8 . . . . 49 Terrain Destroyed 204 | . . 23 . . 25 36 . . . 120 Melee 6 | . . . . . . . . . . 6 Projectile 9 | . . . . . 2 . . . . 7 AOE 189 | . . 23 . . 23 36 . . . 107 Terrain Rammed . | . . . . . . . . . . . Walls Destroyed . | . . . . . . . . . . . Machines Disabled . | . . . . . . . . . . . Actions | -11 -10 -10 -10 -9 -8 -7 -6 -6 -5 -4 --------- Run | Yrd Mat Min Exi Min Mat Fac Fac DSF Fac Fac Total 4586 | 120 119 572 431 60 806 599 148 96 961 674 Wait 554 | . . 6 5 10 141 24 16 1 258 93 Move 3543 | 82 113 552 347 44 566 512 126 79 635 487 Hop . | . . . . . . . . . . . Pick Up 49 | 7 3 3 4 1 15 4 2 2 4 4 Fast Attach 51 | 10 . . . . 7 5 1 . 17 11 Attach 27 | . . . . . 4 10 3 . 4 6 Detach 7 | 2 . . . . 2 . . . 2 1 Swap 34 | . 1 4 2 . 11 1 . 3 4 8 Drop 56 | 2 2 4 5 1 17 4 . 4 6 11 Fire 151 | 17 . 3 6 4 42 39 . . 14 26 Melee 44 | . . . . . . . . . 17 27 Ram . | . . . . . . . . . . . Kick . | . . . . . . . . . . . Crush 1 | . . . . . 1 . . . . . Escape Stasis 6 | . . . . . . . . 6 . . Rewire 63 | . . . 62 . . . . 1 . . Trap . | . . . . . . . . . . . Miscellaneous . | . . . . . . . . . . . Route ------- -11/Scrapyard -10/Materials -10/Mines (discovered 4 exits: [*Mat x2] / [*Exi] / *Sub) -10/Exiles -9/Mines -8/Materials (discovered 3 exits: *Fac x3) -7/Factory -6/Factory -6/DSF -5/Factory -4/Factory History --------- Turn | Location | Event 23 | -11/Scrapyard | Discovered new exit (range 16) 200 | -11/Scrapyard | Entered Materials 301 | -10/Materials | Build established: Mutant 364 | -10/Materials | Discovered new exit (range 10) 386 | -10/Materials | Entered Mines 604 | -10/Mines | Received a Rocket Launcher from a helpful Derelict 723 | -10/Mines | Found a Scrap Suit stashed away for nefarious purposes 730 | -10/Mines | Found Scrap Suit 747 | -10/Mines | Discovered new exit (range 4) 763 | -10/Mines | Assisted by bots powering up and referring to "LRC-V3" 979 | -10/Mines | Learned location of Zion (-7) 982 | -10/Mines | Found a damaged Exp. Sensor Array with a note attached 989 | -10/Mines | Found Prototype Device 1045 | -10/Mines | Deemed a non-threat by the Exiles lab entrance 1046 | -10/Mines | Discovered new exit (range 5) 1070 | -10/Mines | Discovered new exit (range 7) 1122 | -10/Mines | Identified exit to Subcaves 1237 | -10/Mines | A weapon hastily lodged in a ceiling crevice suddenly fell to the ground 1292 | -10/Mines | Entered Exiles 1292 | -10/Exiles | Found Exiles lab destroyed 1292 | -10/Exiles | Accompanied by 3 allies 1687 | -10/Exiles | Build established: Commander-Mutant 1915 | -10/Exiles | Discovered new exit (range 14) 1941 | -10/Exiles | Entered Mines 1941 | -9/Mines | Accompanied by 6 allies 1944 | -9/Mines | Received a Mining Laser from a helpful Derelict 1946 | -9/Mines | Met a Derelict bent on vengeance 1983 | -9/Mines | Discovered new exit (range 16) 2022 | -9/Mines | Assembled infested the area 2027 | -9/Mines | Assisted by a Guerilla fighting off Assembled 2035 | -9/Mines | Entered Materials 2035 | -8/Materials | Accompanied by 5 allies 2035 | -8/Materials | Evolved 4 slots: Propulsion x1, Utility x3 2562 | -8/Materials | Build established: Mutant 3120 | -8/Materials | Identified exit to Factory 3199 | -8/Materials | Entered Factory 3199 | -7/Factory | Evolved 2 slots: Power x1, Propulsion x1 3926 | -7/Factory | System corruption reached 10% 3984 | -7/Factory | Lost 12 parts (2p3n3u4w) 4067 | -7/Factory | Discovered new exit (range 4) 4069 | -7/Factory | Entered another Factory area 4069 | -6/Factory | Evolved 2 slots: Propulsion x2 4108 | -6/Factory | Found Hvy. Reactive Plating 4150 | -6/Factory | Identified exit to DSF 4150 | -6/Factory | Entered DSF 4172 | -6/DSF | Additional patrols routed to DSF 4198 | -6/DSF | Discovered new exit (range 16) 4203 | -6/DSF | Identified exit to Factory 4204 | -6/DSF | Entered Factory 4204 | -5/Factory | Evolved 2 slots: Utility x2 4224 | -5/Factory | Lost 5 parts (4n1u) 4681 | -5/Factory | Fabricated Aerolev Unit? 4747 | -5/Factory | Lost 4 parts (1p2n1w) 5039 | -5/Factory | Build established: Scavenger-Mutant 5343 | -5/Factory | Discovered new exit (range 7) 5350 | -5/Factory | Identified exit to Factory 5351 | -5/Factory | Entered another Factory area 5351 | -4/Factory | Evolved 2 slots: Utility x2 5368 | -4/Factory | Lost 3 parts (1n1u1w) 5651 | -4/Factory | Build established: Hacker-Mutant 6133 | -4/Factory | Lost 4 parts (1p2n1u) 6174 | -4/Factory | System corruption reached 10% 6199 | -4/Factory | Core integrity fell below 50% 6206 | -4/Factory | Core integrity fell below 20% 6209 | -4/Factory | Destroyed by Y-64 Sentinel with Wave Gun Last Messages --------------- 06199_ Penetrated by Slug. 06199_ Slug penetrates Wall. 06199_ U-05 Engineer builds a Wall. 06199_ U-05 Engineer lays Concrete. 06199_ Mic. Fission Core destroyed. 06200_ U-05 Engineer lays Concrete. 06200_ Penetrated by Slug. 06200_ Slug penetrates Earth. 06202_ U-05 Engineer lays Concrete. 06204_ Penetrated by Slug. 06204_ U-05 Engineer lays Concrete. 06205_ Slug penetrates Wall. 06205_ Penetrated by Slug. 06205_ U-05 Engineer destroyed. 06207_ Hacking Suite destroyed. 06207_ Slug penetrates Earth. 06207_ Penetrated by Slug. 06207_ U-05 Engineer builds a Wall. 06207_ Dropped Hcp. Storage Unit. 06208_ Slug penetrates Wall. Map ----- +----------------------------------------------------+ | ??????###### #???????????????????????????????????? | | ?????# # #???????????????????????????????????? | | ########## # #???????????????????????????????????? | | ### #???????????????????????????????????? | | [###!#???????????????????????????????????? | | ! !*+ ![# ?????????????????????????????????? | | |###|#???????????????????????????????????? | | ### # ??????????????????????????????????? | | # # # ??????????????????????????????????? | | * # # # #?????????????????????????????????? | | ! # # ###?????????????????????????????????? | | ] ### #????????????#####??????????????????? | | #?# #????????##### # #??????????????????? | | ###+########## # # # ###????????????????? | | = ## # # #????????????????? | | ########### """ """ # # # #????????????????? | | ??????????# """ """ # # ###??????????????? | | ??????????# """ """ #;;;;;;;;; #??????????????? | | ??????????# #p ;##########???????? | | ??????????# """ #!= """ #???????? | | ??????????# """ u#%= #???????? | | ??????????# """ p|* ! " #???????? | | ??????????# "" # = h"" #???????? | | ??????????# """ F" # = ! " """ #???????? | | ??????????# """ " # ! %""" #???????? | | ??????????# [ """ "" # @ gh """ #???????? | | ????????# # =%[ #???????? | | ###???????##########/##;; !%# ######???????? | | ????????????? % * ? | | ????????????? ^ ? | | ????????????? Y ? | | ???????????? ?? | | ??????????? ?? | | ?????????????########### #+###########??? | | ???????????????????????#### ????????????? | | ????????????????????????????? ???????????? | | ????????????????????????????? =!! ""????????????? | | ????????????????????????????? !! ??????????????? | | ??????????????????????????????!! ????????????????? | | ?????????????????????????????????????????????????? | | ?????????????????????????????????????????????????? | | ?????????????????????????????????????????????????? | | ?????????????????????????????????????????????????? | | ?????????????????????????????????????????????????? | | ?????????????????????????????????????????????????? | | ?????????????????????????????????????????????????? | | ?????????????????????????????????????????????????? | | ?????????????????????????????????????????????????? | | ?????????????????????????????????????????????????? | | ?????????????????????????????????????????????????? | +----------------------------------------------------+ Best States ------------- Heat Dissipation 62 Coolant Potential 65 Energy Generation 55 Energy Capacity 440 Matter Stores 300 Matter Capacity 450 Sight Range 16 Robot Scan Range 15 Terrain Scan Range 16 Terrain Scan Density 10 ECM Strength 1 Base Temperature (-) 100 EM Shielding 3 Armor Coverage 225 Point Defense Rating 160 Evasion (%) 65 Recoil Reduction 6 Offensive Hacking 20 Defensive Hacking 10 Item Schematics ----------------- Aerolev Unit | -7/Factory | Scanalyzed Robot Schematics ------------------ None Fabricated ------------ Aerolev Unit | x1 | -5/Factory Repaired ---------- Nothing Studied --------- Imp. Hover Unit | -7/Factory | Hacked Alien Tech Used ----------------- None Achievements -------------- None Challenges ------------ None Game ------ Seed PitchforkHelicalBlade Manual? 0 Play Time 01:06:18 Cumulative 31.0 hours Start 2026.01.06 @ 23:59:02 End 2026.01.07 @ 23:05:32 Sessions 3 Manual Loads 0 Difficulty Rogue Special Mode None Game No. 35 Rogue 35 Adventurer 0 Explorer 0 Win Type - Total 0 Types 0/0/0/0/0/0/0/0/0/0 Lore% 14 Gallery% 30 Achievement% 22 Wizard Run 0 Options --------- Layout 2 ASCII 0 Keyboard 0 Movement Numpad Keybinds 1 Fullscreen 1 Font 24/Smallcaps Map View 50x44 Zoom Use 0% Tactical HUD 1 Map Filters NONE Filters NONE Steam 1 RUN: f5aeee5f-a7fb-4676-85fa-e8c38a3b1d49